[Event "Live Chess"]
[Site "Chess.com"]
[Date "2024.06.02"]
[Round "-"]
[White "Vladyslav2008"]
[Black "NeilDruggan73"]
[Result "1-0"]
[WhiteElo "2269"]
[BlackElo "1695"]
[TimeControl "300"]
[EndTime "3:01:03 PDT"]
[Termination "Vladyslav2008 won by resignation"]

1. d4 {[%clk 0:04:58.2]} 1... Nf6 {[%clk 0:04:57.5]} 2. Nf3 {[%clk 0:04:57]}
2... g6 {[%clk 0:04:54.5]} 3. c4 {[%clk 0:04:55.8]} 3... Bg7 {[%clk 0:04:53.2]}
4. Nc3 {[%clk 0:04:55.3]} 4... O-O {[%clk 0:04:51.8]} 5. e4 {[%clk 0:04:54]}
5... d6 {[%clk 0:04:50.7]} 6. Be2 {[%clk 0:04:52.2]} 6... Nbd7 {[%clk
0:04:49.1]} 7. O-O {[%clk 0:04:51.2]} 7... e5 {[%clk 0:04:47.9]} 8. d5 {[%clk
0:04:44.1]} 8... Nh5 {[%clk 0:04:42.9]} 9. Ne1 {[%clk 0:04:36.5]} 9... Nf4
{[%clk 0:04:39.6]} 10. Nd3 {[%clk 0:04:32.5]} 10... Nxe2+ {[%clk 0:04:29.5]} 11.
Qxe2 {[%clk 0:04:31.2]} 11... b6 {[%clk 0:04:27.9]} 12. b4 {[%clk 0:04:29.3]}
12... f5 {[%clk 0:04:24.4]} 13. c5 {[%clk 0:04:25.7]} 13... bxc5 {[%clk
0:04:20.4]} 14. bxc5 {[%clk 0:04:24.5]} 14... Ba6 {[%clk 0:04:15.5]} 15. Ba3
{[%clk 0:04:20.4]} 15... dxc5 {[%clk 0:04:11.9]} 16. Qd2 {[%clk 0:04:12.8]}
16... Qf6 {[%clk 0:03:49.4]} 17. f3 {[%clk 0:04:04.1]} 17... h5 {[%clk
0:03:39.4]} 18. Rf2 {[%clk 0:03:57.4]} 18... Kh7 {[%clk 0:03:38.6]} 19. Nxc5
{[%clk 0:03:55.9]} 19... Nxc5 {[%clk 0:03:32.7]} 20. Bxc5 {[%clk 0:03:54.9]}
20... Rf7 {[%clk 0:03:27.5]} 21. Rd1 {[%clk 0:03:46.7]} 21... Bh6 {[%clk
0:03:26]} 22. Be3 {[%clk 0:03:41.6]} 22... Bxe3 {[%clk 0:03:14.4]} 23. Qxe3
{[%clk 0:03:41.5]} 23... f4 {[%clk 0:03:13.1]} 24. Qc5 {[%clk 0:03:37.8]} 24...
Rg8 {[%clk 0:03:07.6]} 25. d6 {[%clk 0:03:36]} 25... Rd7 {[%clk 0:03:03]} 26.
Rfd2 {[%clk 0:03:30.6]} 26... Rgd8 {[%clk 0:02:39]} 27. Nd5 {[%clk 0:03:16.2]}
27... Qxd6 {[%clk 0:02:29]} 28. Nf6+ {[%clk 0:03:14.8]} 28... Qxf6 {[%clk
0:02:19.3]} 29. Rxd7+ {[%clk 0:03:13.6]} 29... Rxd7 {[%clk 0:02:13.9]} 30. Rxd7+
{[%clk 0:03:13.5]} 30... Kh6 {[%clk 0:02:10.5]} 31. Qxc7 {[%clk 0:03:10.6]}
31... Kg5 {[%clk 0:02:08.5]} 32. Rd6 {[%clk 0:03:03.6]} 32... Qf8 {[%clk
0:02:03.2]} 33. Rd5 {[%clk 0:02:57.4]} 33... Qb4 {[%clk 0:01:44.3]} 34. Qd8+
{[%clk 0:02:53.4]} 34... Kh6 {[%clk 0:01:41.2]} 35. Qh8+ {[%clk 0:02:52]} 35...
Kg5 {[%clk 0:01:39.6]} 36. Rxe5+ {[%clk 0:02:50.6]} 36... Kh4 {[%clk 0:01:37.3]}
37. Qd8+ {[%clk 0:02:49.5]} 1-0

[Event "Live Chess"]
[Site "Chess.com"]
[Date "2024.06.02"]
[Round "-"]
[White "Purple1szed"]
[Black "AlanBstard10"]
[Result "1-0"]
[WhiteElo "2071"]
[BlackElo "1223"]
[TimeControl "300"]
[EndTime "3:01:21 PDT"]
[Termination "Purple1szed won by checkmate"]

1. e4 {[%clk 0:04:58.9]} 1... Nc6 {[%clk 0:04:57.2]} 2. d4 {[%clk 0:04:58.1]}
2... e6 {[%clk 0:04:55.4]} 3. Nf3 {[%clk 0:04:55.5]} 3... g6 {[%clk 0:04:53.8]}
4. Nc3 {[%clk 0:04:54.9]} 4... Bg7 {[%clk 0:04:53.1]} 5. Be3 {[%clk 0:04:54.8]}
5... Nge7 {[%clk 0:04:51.9]} 6. Qd2 {[%clk 0:04:54.4]} 6... O-O {[%clk
0:04:51.1]} 7. O-O-O {[%clk 0:04:54.2]} 7... f6 {[%clk 0:04:50.4]} 8. h4 {[%clk
0:04:53.5]} 8... h5 {[%clk 0:04:48.7]} 9. Bh6 {[%clk 0:04:51.2]} 9... Bxh6
{[%clk 0:04:46.7]} 10. Qxh6 {[%clk 0:04:51.1]} 10... Rf7 {[%clk 0:04:43.9]} 11.
d5 {[%clk 0:04:47.4]} 11... exd5 {[%clk 0:04:42.3]} 12. Nxd5 {[%clk 0:04:47.3]}
12... Rh7 {[%clk 0:04:41]} 13. Nxf6+ {[%clk 0:04:38.9]} 13... Kf7 {[%clk
0:04:34.8]} 14. Nxh7 {[%clk 0:04:38.1]} 14... Nb4 {[%clk 0:04:22.2]} 15. Nfg5+
{[%clk 0:04:38]} 15... Ke8 {[%clk 0:04:19.6]} 16. Qf8# {[%clk 0:04:36.2]} 1-0

[Event "Live Chess"]
[Site "Chess.com"]
[Date "2024.06.02"]
[Round "-"]
[White "PatientChessPapa"]
[Black "dmitro74"]
[Result "0-1"]
[WhiteElo "797"]
[BlackElo "1738"]
[TimeControl "300"]
[EndTime "3:01:26 PDT"]
[Termination "dmitro74 won on time"]

1. e4 {[%clk 0:04:57]} 1... e6 {[%clk 0:04:58.6]} 2. d4 {[%clk 0:04:55.3]} 2...
d5 {[%clk 0:04:57.6]} 3. exd5 {[%clk 0:04:54.1]} 3... exd5 {[%clk 0:04:55.7]} 4.
c4 {[%clk 0:04:52.9]} 4... c6 {[%clk 0:04:52.9]} 5. Nc3 {[%clk 0:04:51.5]} 5...
Nf6 {[%clk 0:04:50.8]} 6. Nf3 {[%clk 0:04:49.9]} 6... Bd6 {[%clk 0:04:46.8]} 7.
Be2 {[%clk 0:04:44.2]} 7... O-O {[%clk 0:04:45.1]} 8. O-O {[%clk 0:04:42.1]}
8... Bf5 {[%clk 0:04:42.9]} 9. Bg5 {[%clk 0:04:26.1]} 9... Nbd7 {[%clk 0:04:40]}
10. Re1 {[%clk 0:04:13.8]} 10... Qc7 {[%clk 0:04:37.1]} 11. c5 {[%clk
0:03:57.6]} 11... Bf4 {[%clk 0:04:34.4]} 12. Bxf4 {[%clk 0:03:47.4]} 12... Qxf4
{[%clk 0:04:32.4]} 13. h3 {[%clk 0:03:29.5]} 13... Ne4 {[%clk 0:04:26]} 14. Bd3
{[%clk 0:03:01.2]} 14... Ndf6 {[%clk 0:04:07.1]} 15. Bxe4 {[%clk 0:02:29.8]}
15... Nxe4 {[%clk 0:04:04]} 16. Nxe4 {[%clk 0:02:13.7]} 16... Bxe4 {[%clk
0:04:01.8]} 17. Rc1 {[%clk 0:01:49.5]} 17... Bxf3 {[%clk 0:03:49.4]} 18. Qxf3
{[%clk 0:01:47]} 18... Qxd4 {[%clk 0:03:47]} 19. b3 {[%clk 0:01:38.5]} 19...
Rfe8 {[%clk 0:03:41]} 20. Red1 {[%clk 0:00:59.9]} 20... Qe4 {[%clk 0:03:38.2]}
21. Re1 {[%clk 0:00:41.8]} 21... Qxf3 {[%clk 0:03:34.1]} 22. gxf3 {[%clk
0:00:40.4]} 22... Kf8 {[%clk 0:03:29.5]} 23. Kg2 {[%clk 0:00:27.7]} 23... Rxe1
{[%clk 0:03:27]} 24. Rxe1 {[%clk 0:00:26.2]} 24... Re8 {[%clk 0:03:26.1]} 25.
Rxe8+ {[%clk 0:00:16.1]} 25... Kxe8 {[%clk 0:03:24.5]} 26. f4 {[%clk 0:00:14.7]}
26... f5 {[%clk 0:03:22.8]} 27. Kf3 {[%clk 0:00:12.6]} 27... Ke7 {[%clk
0:03:17.3]} 28. Ke3 {[%clk 0:00:05]} 28... Ke6 {[%clk 0:03:14.3]} 29. Kd4 {[%clk
0:00:03.6]} 29... h6 {[%clk 0:03:09.7]} 0-1

[Event "Live Chess"]
[Site "Chess.com"]
[Date "2024.06.02"]
[Round "-"]
[White "raclement"]
[Black "resipsa6"]
[Result "0-1"]
[WhiteElo "1730"]
[BlackElo "2030"]
[TimeControl "300"]
[EndTime "3:01:31 PDT"]
[Termination "resipsa6 won by resignation"]

1. Nf3 {[%clk 0:04:55.3]} 1... Nf6 {[%clk 0:04:58.4]} 2. g3 {[%clk 0:04:53.1]}
2... g6 {[%clk 0:04:56.7]} 3. Bg2 {[%clk 0:04:50.1]} 3... Bg7 {[%clk 0:04:55.9]}
4. d3 {[%clk 0:04:47.4]} 4... d5 {[%clk 0:04:55]} 5. c4 {[%clk 0:04:44.2]} 5...
dxc4 {[%clk 0:04:53.5]} 6. Qa4+ {[%clk 0:04:40.6]} 6... Bd7 {[%clk 0:04:50.7]}
7. Qxc4 {[%clk 0:04:38.9]} 7... Bc6 {[%clk 0:04:50]} 8. O-O {[%clk 0:04:37.2]}
8... O-O {[%clk 0:04:48.5]} 9. Bf4 {[%clk 0:04:32.3]} 9... b6 {[%clk 0:04:46.5]}
10. Nbd2 {[%clk 0:04:26]} 10... Nd5 {[%clk 0:04:39.7]} 11. Ne5 {[%clk
0:04:13.9]} 11... Nxf4 {[%clk 0:04:30.5]} 12. Nxc6 {[%clk 0:04:12]} 12... Nxe2+
{[%clk 0:04:28.9]} 13. Kh1 {[%clk 0:04:07.3]} 13... Nxc6 {[%clk 0:04:28]} 14.
Qxc6 {[%clk 0:04:04.4]} 14... Qxd3 {[%clk 0:04:26.7]} 15. Rad1 {[%clk
0:03:48.9]} 15... Rad8 {[%clk 0:04:21.8]} 16. Qe4 {[%clk 0:03:38.6]} 16... Qxe4
{[%clk 0:04:18.5]} 17. Nxe4 {[%clk 0:03:37.1]} 17... Bxb2 {[%clk 0:04:13.8]} 18.
Rd2 {[%clk 0:03:32.3]} 18... Rxd2 {[%clk 0:04:08]} 19. Nxd2 {[%clk 0:03:29.6]}
19... Rd8 {[%clk 0:04:06.4]} 20. Nc4 {[%clk 0:03:26.2]} 20... Bg7 {[%clk
0:04:04]} 21. Bf3 {[%clk 0:03:18]} 21... Nc3 {[%clk 0:04:02.4]} 22. a3 {[%clk
0:03:12.5]} 22... e5 {[%clk 0:03:55]} 23. Kg2 {[%clk 0:03:07.8]} 23... e4 {[%clk
0:03:53.9]} 24. Bg4 {[%clk 0:03:06.4]} 24... f5 {[%clk 0:03:51.5]} 25. Bh3
{[%clk 0:03:04.4]} 25... Rd1 {[%clk 0:03:42.8]} 26. g4 {[%clk 0:02:58.7]} 26...
Rxf1 {[%clk 0:03:41.4]} 27. Kxf1 {[%clk 0:02:55.7]} 27... f4 {[%clk 0:03:37.6]}
28. g5 {[%clk 0:02:53.7]} 28... Bf8 {[%clk 0:03:32]} 29. Be6+ {[%clk 0:02:51.7]}
29... Kg7 {[%clk 0:03:30.6]} 30. h4 {[%clk 0:02:50.5]} 30... b5 {[%clk 0:03:28]}
31. Ne5 {[%clk 0:02:48.7]} 31... Bxa3 {[%clk 0:03:25.6]} 32. Bd7 {[%clk
0:02:40.3]} 32... b4 {[%clk 0:03:21.5]} 33. Be6 {[%clk 0:02:35.3]} 33... a5
{[%clk 0:03:19.5]} 34. Ng4 {[%clk 0:02:30.1]} 34... a4 {[%clk 0:03:17.3]} 35.
Ne5 {[%clk 0:02:26]} 35... b3 {[%clk 0:03:13.1]} 36. Nc4 {[%clk 0:02:24]} 36...
Bd6 {[%clk 0:03:10.6]} 37. Nb2 {[%clk 0:02:18]} 37... a3 {[%clk 0:03:08.6]} 38.
Nc4 {[%clk 0:02:16.5]} 38... b2 {[%clk 0:03:06.7]} 39. Nxd6 {[%clk 0:02:13.2]}
39... b1=Q+ {[%clk 0:03:04.4]} 0-1

[Event "Live Chess"]
[Site "Chess.com"]
[Date "2024.06.02"]
[Round "-"]
[White "Delacorta"]
[Black "halfberg"]
[Result "0-1"]
[WhiteElo "1520"]
[BlackElo "1897"]
[TimeControl "300"]
[EndTime "3:01:36 PDT"]
[Termination "halfberg won on time"]

1. d4 {[%clk 0:04:56]} 1... Nf6 {[%clk 0:04:58.2]} 2. Nf3 {[%clk 0:04:55]} 2...
g6 {[%clk 0:04:56.6]} 3. c4 {[%clk 0:04:51.7]} 3... Bg7 {[%clk 0:04:55.2]} 4.
Nc3 {[%clk 0:04:50.5]} 4... O-O {[%clk 0:04:53.5]} 5. h4 {[%clk 0:04:41.4]} 5...
h6 {[%clk 0:04:51.3]} 6. e4 {[%clk 0:04:34.9]} 6... d6 {[%clk 0:04:48.7]} 7. Be3
{[%clk 0:04:18.1]} 7... Bg4 {[%clk 0:04:46.6]} 8. Be2 {[%clk 0:04:14.4]} 8...
Nbd7 {[%clk 0:04:44.6]} 9. Qd2 {[%clk 0:04:09]} 9... h5 {[%clk 0:04:19.8]} 10.
Bh6 {[%clk 0:03:49.3]} 10... e5 {[%clk 0:04:12]} 11. Bxg7 {[%clk 0:03:44.1]}
11... Kxg7 {[%clk 0:04:10.5]} 12. d5 {[%clk 0:03:29]} 12... Nc5 {[%clk
0:04:05.4]} 13. Qc2 {[%clk 0:03:18.7]} 13... a5 {[%clk 0:03:51.5]} 14. O-O
{[%clk 0:03:14.8]} 14... c6 {[%clk 0:03:25.9]} 15. Rab1 {[%clk 0:02:59.8]} 15...
cxd5 {[%clk 0:03:22.3]} 16. cxd5 {[%clk 0:02:52.6]} 16... Rc8 {[%clk 0:03:21.4]}
17. Qd1 {[%clk 0:02:16.6]} 17... Ncxe4 {[%clk 0:03:08.3]} 18. Ng5 {[%clk
0:01:53.9]} 18... Bxe2 {[%clk 0:03:05.5]} 19. Qxe2 {[%clk 0:01:52.4]} 19... Nxc3
{[%clk 0:02:57.2]} 20. bxc3 {[%clk 0:01:48.8]} 20... Nxd5 {[%clk 0:02:47.5]} 21.
Qf3 {[%clk 0:01:33.4]} 21... Nxc3 {[%clk 0:02:41.4]} 22. Rxb7 {[%clk 0:01:24.8]}
22... Qf6 {[%clk 0:02:35.5]} 23. Qxf6+ {[%clk 0:00:37.5]} 23... Kxf6 {[%clk
0:02:30.7]} 24. Nh7+ {[%clk 0:00:36.5]} 24... Kg7 {[%clk 0:02:22.4]} 25. Nxf8
{[%clk 0:00:35]} 25... Kxf8 {[%clk 0:02:17.1]} 26. Kh2 {[%clk 0:00:24.1]} 26...
d5 {[%clk 0:02:13.2]} 27. Re1 {[%clk 0:00:19.2]} 27... Re8 {[%clk 0:02:05.9]}
28. Rc1 {[%clk 0:00:15.6]} 28... d4 {[%clk 0:02:04.2]} 29. Rd7 {[%clk
0:00:14.3]} 29... Kg7 {[%clk 0:01:55.4]} 30. Rc2 {[%clk 0:00:13.5]} 30... Kf6
{[%clk 0:01:53.2]} 31. Rb2 {[%clk 0:00:12.7]} 31... Re7 {[%clk 0:01:45.8]} 32.
Rb6+ {[%clk 0:00:10.4]} 32... Re6 {[%clk 0:01:45.1]} 33. Rdd6 {[%clk 0:00:08.2]}
33... Rxd6 {[%clk 0:01:41.3]} 34. Rxd6+ {[%clk 0:00:08.1]} 34... Ke7 {[%clk
0:01:37.7]} 35. Rc6 {[%clk 0:00:06.2]} 35... Ne4 {[%clk 0:01:33.5]} 36. f3
{[%clk 0:00:03.4]} 36... Nc3 {[%clk 0:01:25.5]} 37. Kg3 {[%clk 0:00:01.2]} 37...
Nxa2 {[%clk 0:01:23.5]} 0-1

[Event "Live Chess"]
[Site "Chess.com"]
[Date "2024.06.02"]
[Round "-"]
[White "silunn"]
[Black "bill77678"]
[Result "1-0"]
[WhiteElo "2176"]
[BlackElo "1843"]
[TimeControl "300"]
[EndTime "3:01:36 PDT"]
[Termination "silunn won by resignation"]

1. e4 {[%clk 0:04:58.9]} 1... c6 {[%clk 0:04:59.1]} 2. d4 {[%clk 0:04:57.3]}
2... d5 {[%clk 0:04:58.7]} 3. exd5 {[%clk 0:04:57.2]} 3... cxd5 {[%clk
0:04:58.5]} 4. c4 {[%clk 0:04:56.9]} 4... Nf6 {[%clk 0:04:56.9]} 5. Nc3 {[%clk
0:04:56.2]} 5... Nc6 {[%clk 0:04:56.5]} 6. Be3 {[%clk 0:04:55.4]} 6... a6 {[%clk
0:04:52.9]} 7. c5 {[%clk 0:04:51.4]} 7... Bf5 {[%clk 0:04:49.6]} 8. Bd3 {[%clk
0:04:48.4]} 8... Bxd3 {[%clk 0:04:47.9]} 9. Qxd3 {[%clk 0:04:48.3]} 9... e6
{[%clk 0:04:44.7]} 10. a3 {[%clk 0:04:46.4]} 10... Be7 {[%clk 0:04:43.4]} 11.
Nf3 {[%clk 0:04:45.3]} 11... O-O {[%clk 0:04:41.8]} 12. O-O {[%clk 0:04:44.6]}
12... a5 {[%clk 0:04:32.5]} 13. Rab1 {[%clk 0:04:38.5]} 13... b6 {[%clk
0:04:20.7]} 14. Qb5 {[%clk 0:04:33.7]} 14... Na7 {[%clk 0:03:53.6]} 15. Qxb6
{[%clk 0:04:30.6]} 15... Qxb6 {[%clk 0:03:53.1]} 16. cxb6 {[%clk 0:04:30.5]}
16... Nc6 {[%clk 0:03:50.6]} 17. Na4 {[%clk 0:04:26.2]} 17... Rfb8 {[%clk
0:03:41.1]} 18. Rfc1 {[%clk 0:04:20.8]} 18... Nd8 {[%clk 0:03:27]} 19. Bf4
{[%clk 0:04:07]} 19... Rb7 {[%clk 0:03:18.4]} 20. Rc7 {[%clk 0:03:48.3]} 20...
Ne8 {[%clk 0:02:56.5]} 21. Rxb7 {[%clk 0:03:43.2]} 21... Nxb7 {[%clk 0:02:54.2]}
22. Rc1 {[%clk 0:03:42.5]} 22... Bd6 {[%clk 0:02:51.2]} 23. Bxd6 {[%clk
0:03:38.5]} 23... Nexd6 {[%clk 0:02:51.1]} 24. Ne5 {[%clk 0:03:37.2]} 24... Rc8
{[%clk 0:02:46.2]} 25. Rc7 {[%clk 0:03:17.1]} 25... Kf8 {[%clk 0:02:27.4]} 26.
Nc5 {[%clk 0:02:57.5]} 26... Rxc7 {[%clk 0:02:08.8]} 27. bxc7 {[%clk 0:02:54.6]}
27... Nxc5 {[%clk 0:02:05.7]} 28. dxc5 {[%clk 0:02:52.2]} 28... Nc8 {[%clk
0:02:03.8]} 29. Nd7+ {[%clk 0:02:46.1]} 1-0

[Event "Live Chess"]
[Site "Chess.com"]
[Date "2024.06.02"]
[Round "-"]
[White "Queensandpawns"]
[Black "vincents82"]
[Result "1-0"]
[WhiteElo "2264"]
[BlackElo "2012"]
[TimeControl "300"]
[EndTime "3:01:53 PDT"]
[Termination "Queensandpawns won by resignation"]

1. e4 {[%clk 0:04:59.2]} 1... d5 {[%clk 0:04:58.5]} 2. Nc3 {[%clk 0:04:58.4]}
2... dxe4 {[%clk 0:04:57.2]} 3. Nxe4 {[%clk 0:04:58.3]} 3... Nd7 {[%clk
0:04:56.3]} 4. Nf3 {[%clk 0:04:57.5]} 4... Ngf6 {[%clk 0:04:55.2]} 5. Neg5
{[%clk 0:04:57.2]} 5... e6 {[%clk 0:04:52.4]} 6. d4 {[%clk 0:04:56.5]} 6... Be7
{[%clk 0:04:51.6]} 7. Nxf7 {[%clk 0:04:54.3]} 7... Kxf7 {[%clk 0:04:50.7]} 8.
Ng5+ {[%clk 0:04:54.2]} 8... Kg8 {[%clk 0:04:45.6]} 9. Nxe6 {[%clk 0:04:54.1]}
9... Qe8 {[%clk 0:04:44.1]} 10. Bc4 {[%clk 0:04:41.4]} 10... Nb6 {[%clk
0:04:41.6]} 11. Nxc7+ {[%clk 0:04:37.9]} 1-0

[Event "Live Chess"]
[Site "Chess.com"]
[Date "2024.06.02"]
[Round "-"]
[White "DJ_Lambton"]
[Black "WeakOldFinished"]
[Result "0-1"]
[WhiteElo "1779"]
[BlackElo "2106"]
[TimeControl "300"]
[EndTime "3:01:55 PDT"]
[Termination "WeakOldFinished won by resignation"]

1. c4 {[%clk 0:04:59.4]} 1... g6 {[%clk 0:04:58.1]} 2. g3 {[%clk 0:04:58.8]}
2... Bg7 {[%clk 0:04:57.4]} 3. Bg2 {[%clk 0:04:58.5]} 3... Nf6 {[%clk 0:04:57]}
4. Nc3 {[%clk 0:04:58.2]} 4... O-O {[%clk 0:04:56.5]} 5. e3 {[%clk 0:04:57.8]}
5... d6 {[%clk 0:04:55.1]} 6. Nge2 {[%clk 0:04:57.2]} 6... e5 {[%clk 0:04:54.2]}
7. O-O {[%clk 0:04:56.7]} 7... c6 {[%clk 0:04:53.1]} 8. b3 {[%clk 0:04:56.3]}
8... Re8 {[%clk 0:04:49.3]} 9. Bb2 {[%clk 0:04:55.7]} 9... d5 {[%clk 0:04:45.8]}
10. cxd5 {[%clk 0:04:54.5]} 10... cxd5 {[%clk 0:04:45.3]} 11. d4 {[%clk
0:04:53.7]} 11... e4 {[%clk 0:04:43.9]} 12. Nf4 {[%clk 0:04:52.8]} 12... Nc6
{[%clk 0:04:40.4]} 13. Rc1 {[%clk 0:04:51.1]} 13... g5 {[%clk 0:04:34.8]} 14.
Nfe2 {[%clk 0:04:47.9]} 14... Nb4 {[%clk 0:04:27.2]} 15. a3 {[%clk 0:04:42.4]}
15... Nd3 {[%clk 0:04:25.8]} 16. Rb1 {[%clk 0:04:41.6]} 16... Bf5 {[%clk
0:04:11.2]} 17. Nc1 {[%clk 0:04:40.6]} 17... Nxb2 {[%clk 0:04:06.7]} 18. Rxb2
{[%clk 0:04:39.3]} 18... Rc8 {[%clk 0:04:04.3]} 19. N1e2 {[%clk 0:04:37.3]}
19... Qd7 {[%clk 0:04:02.5]} 20. Qd2 {[%clk 0:04:35.9]} 20... Bh3 {[%clk
0:04:00.4]} 21. Rc1 {[%clk 0:04:32.4]} 21... Bxg2 {[%clk 0:03:57.2]} 22. Kxg2
{[%clk 0:04:31.7]} 22... Qg4 {[%clk 0:03:56.7]} 23. Ng1 {[%clk 0:04:27.8]} 23...
h5 {[%clk 0:03:52.1]} 24. Qe2 {[%clk 0:04:14.8]} 24... Qf5 {[%clk 0:03:48.9]}
25. Rbc2 {[%clk 0:04:13.4]} 25... g4 {[%clk 0:03:43.6]} 26. Qb5 {[%clk
0:04:00.6]} 26... b6 {[%clk 0:03:37.3]} 27. Nxd5 {[%clk 0:03:42.8]} 27... Qxd5
{[%clk 0:03:21]} 28. Qxd5 {[%clk 0:03:37]} 28... Rxc2 {[%clk 0:03:20.1]} 29.
Qxf7+ {[%clk 0:03:25.8]} 29... Kxf7 {[%clk 0:03:18.4]} 30. Rxc2 {[%clk
0:03:25.1]} 30... Nd5 {[%clk 0:03:17]} 31. Ne2 {[%clk 0:03:23.2]} 31... Bh6
{[%clk 0:03:15.5]} 32. Nc3 {[%clk 0:03:21.6]} 32... Rc8 {[%clk 0:03:12.1]} 0-1

[Event "Live Chess"]
[Site "Chess.com"]
[Date "2024.06.02"]
[Round "-"]
[White "juniortay"]
[Black "Zhevzh1k7"]
[Result "1-0"]
[WhiteElo "2379"]
[BlackElo "1107"]
[TimeControl "300"]
[EndTime "3:02:00 PDT"]
[Termination "juniortay won by checkmate"]

1. e4 {[%clk 0:04:59.7]} 1... c6 {[%clk 0:04:58.5]} 2. Nf3 {[%clk 0:04:57]} 2...
d5 {[%clk 0:04:57.4]} 3. exd5 {[%clk 0:04:56.9]} 3... cxd5 {[%clk 0:04:55.8]} 4.
Ne5 {[%clk 0:04:56.4]} 4... Nf6 {[%clk 0:04:49.9]} 5. d4 {[%clk 0:04:55.3]} 5...
Nc6 {[%clk 0:04:47.2]} 6. Bb5 {[%clk 0:04:54.2]} 6... Bd7 {[%clk 0:04:45.5]} 7.
Nxd7 {[%clk 0:04:53.2]} 7... Nxd7 {[%clk 0:04:43]} 8. O-O {[%clk 0:04:53.1]}
8... a6 {[%clk 0:04:41.7]} 9. Bd3 {[%clk 0:04:51.9]} 9... e6 {[%clk 0:04:39.3]}
10. c3 {[%clk 0:04:50.5]} 10... Be7 {[%clk 0:04:36.7]} 11. Nd2 {[%clk
0:04:49.3]} 11... O-O {[%clk 0:04:35.2]} 12. f4 {[%clk 0:04:48.4]} 12... Nf6
{[%clk 0:04:29.3]} 13. Qe2 {[%clk 0:04:46.1]} 13... Qc7 {[%clk 0:04:24]} 14. Nf3
{[%clk 0:04:44.7]} 14... Na5 {[%clk 0:04:21.4]} 15. Ne5 {[%clk 0:04:43.2]} 15...
Nc4 {[%clk 0:04:18.4]} 16. Rf3 {[%clk 0:04:41.8]} 16... Nxe5 {[%clk 0:04:16.4]}
17. fxe5 {[%clk 0:04:39.6]} 17... Nd7 {[%clk 0:04:11.9]} 18. Rh3 {[%clk
0:04:24.6]} 18... h6 {[%clk 0:04:07.3]} 19. Bxh6 {[%clk 0:04:22.8]} 19... gxh6
{[%clk 0:04:07.2]} 20. Rxh6 {[%clk 0:04:21.4]} 20... Nxe5 {[%clk 0:03:57.6]} 21.
Qh5 {[%clk 0:04:09.1]} 21... Ng6 {[%clk 0:03:50]} 22. Bxg6 {[%clk 0:04:06.7]}
22... fxg6 {[%clk 0:03:49.9]} 23. Qxg6# {[%clk 0:04:05.4]} 1-0